{"text_format":"3","workbook":"xlsx","n_sheets":4,"sheets":["Spisak za kupovinu","Analiza budžeta","Lista zaduženja","Deljenje liste"],"not_rendered":{"charts":2,"images":2,"defined_names":12},"read":"whole","date_system":"1900"}

{"sheet":"Spisak za kupovinu","index":0,"n_rows":25,"n_cols":8,"rows_kept":25,"merged":[[2,1,2,7],[3,1,3,2],[4,4,6,7]]}
[null,"Povratak u školu","Planer"]
[]
[null,"Pratite napredak kupovine prema iznosu kategorije budžeta unetog u analizu budžeta."]
[null,"Rezime budžeta",null,null,{"$f":"\"Tok kupovine (\"&COUNTIFS(Lista_za_proveru[Kupljeno], \">0\")&\" od \"&COUNTIFS(Lista_za_proveru[Za kupovinu], \">0\")&\")\"","v":"Tok kupovine (1 od 6)"}]
[null,"Budžet",{"v":1500,"d":"1,500.00 RSD"},null,{"$f":"IFERROR(COUNTIFS(Lista_za_proveru[Za kupovinu],\">0\",Lista_za_proveru[Kupljeno],\">0\")/ZbirStavkiZa_kupovinu,0)","v":{"v":0.16666666666666666,"d":"17%"}}]
[null,"Ukupan spisak za kupovinu",{"$f":"IFERROR(SUM(Lista_za_proveruUkupno), \"\")","v":{"v":365,"d":"365.00 RSD"}}]
[null,"Preostala gotovina",{"$f":"IFERROR(C5-C6, \"\")","v":{"v":1135,"d":"1,135.00 RSD"}}]
[null,"Spisak za kupovinu"]
[null,"Stavka","Kategorija","Kol.","Za kupovinu","Cena","Kupljeno","Ukupna cena"]
[null,"Matematika","Udžbenici",1,1,{"v":55,"d":"55.00 RSD"},1,{"$f":"IFERROR(Lista_za_proveru[Kol.]*Lista_za_proveru[Cena], \"\")","v":{"v":55,"d":"55.00 RSD"}}]
[null,"Engleski","Udžbenici",1,1,null,null,{"$f":"IFERROR(Lista_za_proveru[Kol.]*Lista_za_proveru[Cena], \"\")","v":0}]
[null,"Torba","Pribor",1,null,{"v":30,"d":"30.00 RSD"},null,{"$f":"IFERROR(Lista_za_proveru[Kol.]*Lista_za_proveru[Cena], \"\")","v":{"v":30,"d":"30.00 RSD"}}]
[null,"Kalkulator","Pribor",1,{"$nulls":3},{"$f":"IFERROR(Lista_za_proveru[Kol.]*Lista_za_proveru[Cena], \"\")","v":0}]
[null,"Markeri","Pribor",3,{"$nulls":3},{"$f":"IFERROR(Lista_za_proveru[Kol.]*Lista_za_proveru[Cena], \"\")","v":0}]
[null,"Uniforma","Odeća",2,1,{"v":100,"d":"100.00 RSD"},null,{"$f":"IFERROR(Lista_za_proveru[Kol.]*Lista_za_proveru[Cena], \"\")","v":{"v":200,"d":"200.00 RSD"}}]
[null,"Majica na zakopčavanje","Odeća",4,{"$nulls":3},{"$f":"IFERROR(Lista_za_proveru[Kol.]*Lista_za_proveru[Cena], \"\")","v":0}]
[null,"Majica, majice","Odeća",5,{"$nulls":3},{"$f":"IFERROR(Lista_za_proveru[Kol.]*Lista_za_proveru[Cena], \"\")","v":0}]
[null,"Šorcevi","Odeća",2,{"$nulls":3},{"$f":"IFERROR(Lista_za_proveru[Kol.]*Lista_za_proveru[Cena], \"\")","v":0}]
[null,"Patike","Odeća",2,1,null,null,{"$f":"IFERROR(Lista_za_proveru[Kol.]*Lista_za_proveru[Cena], \"\")","v":0}]
[null,"Čarape","Odeća",10,{"$nulls":3},{"$f":"IFERROR(Lista_za_proveru[Kol.]*Lista_za_proveru[Cena], \"\")","v":0}]
[null,"Prolećna jakna","Odeća",1,1,{"v":80,"d":"80.00 RSD"},null,{"$f":"IFERROR(Lista_za_proveru[Kol.]*Lista_za_proveru[Cena], \"\")","v":{"v":80,"d":"80.00 RSD"}}]
[null,"Džemperi","Odeća",1,{"$nulls":3},{"$f":"IFERROR(Lista_za_proveru[Kol.]*Lista_za_proveru[Cena], \"\")","v":0}]
[null,"Puloveri","Odeća",1,{"$nulls":3},{"$f":"IFERROR(Lista_za_proveru[Kol.]*Lista_za_proveru[Cena], \"\")","v":0}]
[null,"Rublje","Odeća",10,{"$nulls":3},{"$f":"IFERROR(Lista_za_proveru[Kol.]*Lista_za_proveru[Cena], \"\")","v":0}]
[null,"Zimska jakna","Odeća",1,1,null,null,{"$f":"IFERROR(Lista_za_proveru[Kol.]*Lista_za_proveru[Cena], \"\")","v":0}]

{"sheet":"Analiza budžeta","index":1,"n_rows":6,"n_cols":3,"rows_kept":6}
[null,"Analiza budžeta"]
[null,"Dodajte kategorije i iznose budžeta za praćenje u odnosu na spisak za kupovinu."]
[null,"Kategorija","Ukupna cena"]
[null,"Odeća",{"$f":"IFERROR(SUMIFS(Lista_za_proveru[Ukupna cena],Lista_za_proveru[Kategorija],Kategorija[Kategorija]), \"\")","v":{"v":280,"d":"280.00 RSD"}}]
[null,"Pribor",{"$f":"IFERROR(SUMIFS(Lista_za_proveru[Ukupna cena],Lista_za_proveru[Kategorija],Kategorija[Kategorija]), \"\")","v":{"v":30,"d":"30.00 RSD"}}]
[null,"Udžbenici",{"$f":"IFERROR(SUMIFS(Lista_za_proveru[Ukupna cena],Lista_za_proveru[Kategorija],Kategorija[Kategorija]), \"\")","v":{"v":55,"d":"55.00 RSD"}}]

{"sheet":"Lista zaduženja","index":2,"n_rows":22,"n_cols":3,"rows_kept":22}
[null,"Lista zaduženja"]
[null,"Pratite sve aktivnosti koje treba da obavite pre početka škole."]
[null,"Gotovo","Zadatak"]
[null,"x","Popunite sve obrasce za registraciju"]
[null,null,"Zakažite lekarski i oftalmološki pregled u školi ako je potrebno"]
[null,null,"Potvrdite sve potrebne imunizacije"]
[null,null,"Nabavite belešku sa uputstvima za doziranje svih potrebnih lekova od lekara"]
[null,null,"Pregledajte školska pravila oblačenja"]
[null,null,"Nabavite listu školskog pribora"]
[null,null,"Upoznajte učitelja"]
[null,null,"Odredite željeni način komunikacije sa učiteljem (telefon, e-pošta, pisana beleška)"]
[null,null,"Obiđite školu sa svojim detetom"]
[null,null,"Pomozite detetu da zapamti kućni broj telefona, broj telefona na poslu i kućnu adresu"]
[null,null,"Organizujte prevoz, odredite mesto bezbednog sastanka i vežbajte rutinu"]
[null,null,"Ako pešači, vežbajte sa detetom put do škole i od škole nekoliko puta"]
[null,null,"Ako deli prevoz, upoznajte sve vozače sa svojim detetom"]
[null,null,"Ako se vozi autobusom, utvrdite red vožnje i autobuske stanice"]
[null,null,"Organizujte negu deteta/negu posle škole"]
[null,null,"Planirajte meni za doručak, školsku užinu, ručak koji pakujete i grickalice za posle nastave"]
[null,null,"Utvrdite lokaciju domaćih zadataka i raspored"]
[null,null,"Uspostavite rutinu za spavanje najkasnije dve nedelje pre početka škole"]
[null,null,"Pripremite kalendar svih školskih događaja i aktivnosti"]

{"sheet":"Deljenje liste","index":3,"n_rows":4,"n_cols":5,"rows_kept":4}
[null,"Deljenje liste",null,null,"Delite ovu listu sa drugima, tako da oni mogu da doprinose. Izaberite stavku „Deli” u gornjem desnom uglu ili pritisnite taster ALT, zatim YU. Sačuvajte datoteku u usluzi OneDrive i pošaljite vezu prijateljima."]
[null,"Ime","Adresa e-pošte","Deljeno?"]
[null,"Osoba 1","neko@email.com","Da"]
[null,"Osoba 2","neko@email.com","Ne"]